[Event "13 Open de Quenza"]
[Site "Quenza, France"]
[Date "2024.07.07"]
[Round "7.3"]
[White "Travadon, Loic"]
[Black "Maurizzi, Marc Andria"]
[Result "0-1"]
[TimeControl "5min+3s/move"]
[WhiteElo "2458"]
[BlackElo "2620"]

1. d4 {[%clk 00:05:03]} {[%emt 00:00:02]} Nf6 {[%clk 00:05:03]} {[%emt
00:00:02]} 2. Nf3 {[%clk 00:05:03]} {[%emt 00:00:01]} c5 {[%clk 00:05:03]}
{[%emt 00:00:01]} 3. c3 {[%clk 00:05:03]} {[%emt 00:00:03]} e6 {[%clk
00:04:59]} {[%emt 00:00:08]} 4. Bg5 {[%clk 00:04:59]} {[%emt 00:00:07]} h6
{[%clk 00:04:58]} {[%emt 00:00:04]} 5. Bh4 {[%clk 00:04:59]} {[%emt 00:00:02]}
Be7 {[%clk 00:04:38]} {[%emt 00:00:23]} 6. Nbd2 {[%clk 00:04:58]} {[%emt
00:00:04]} cxd4 {[%clk 00:04:38]} {[%emt 00:00:02]} 7. cxd4 {[%clk 00:04:53]}
{[%emt 00:00:09]} d5 {[%clk 00:04:38]} {[%emt 00:00:02]} 8. e3 {[%clk
00:04:53]} {[%emt 00:00:02]} Nc6 {[%clk 00:04:38]} {[%emt 00:00:02]} 9. Bd3
{[%clk 00:04:47]} {[%emt 00:00:09]} O-O {[%clk 00:04:38]} {[%emt 00:00:01]} 10.
O-O {[%clk 00:04:46]} {[%emt 00:00:03]} Qb6 {[%clk 00:04:38]} {[%emt 00:00:03]}
11. Qb3 {[%clk 00:04:31]} {[%emt 00:00:18]} Qxb3 {[%clk 00:04:12]} {[%emt
00:00:29]} 12. Nxb3 {[%clk 00:04:31]} {[%emt 00:00:02]} g5 {[%clk 00:04:12]}
{[%emt 00:00:01]} 13. Bg3 {[%clk 00:04:31]} {[%emt 00:00:02]} Nh5 {[%clk
00:04:08]} {[%emt 00:00:07]} 14. Bc7 {[%clk 00:04:30]} {[%emt 00:00:04]} Nb4
{[%clk 00:03:31]} {[%emt 00:00:40]} 15. Be2 {[%clk 00:04:30]} {[%emt 00:00:02]}
Nf6 {[%clk 00:03:17]} {[%emt 00:00:17]} 16. Rfc1 {[%clk 00:04:25]} {[%emt
00:00:07]} Bd7 {[%clk 00:02:59]} {[%emt 00:00:21]} 17. Ne5 {[%clk 00:04:21]}
{[%emt 00:00:08]} Rfc8 {[%clk 00:02:57]} {[%emt 00:00:05]} 18. a3 {[%clk
00:04:20]} {[%emt 00:00:04]} Nc6 {[%clk 00:02:57]} {[%emt 00:00:02]} 19. Nxc6
{[%clk 00:04:12]} {[%emt 00:00:12]} Bxc6 {[%clk 00:02:57]} {[%emt 00:00:02]} 20.
Be5 {[%clk 00:04:12]} {[%emt 00:00:01]} Nd7 {[%clk 00:02:57]} {[%emt 00:00:02]}
21. Bg3 {[%clk 00:04:12]} {[%emt 00:00:01]} Ba4 {[%clk 00:02:51]} {[%emt
00:00:09]} 22. Na5 {[%clk 00:04:09]} {[%emt 00:00:06]} b6 {[%clk 00:02:50]}
{[%emt 00:00:04]} 23. Nb7 {[%clk 00:03:56]} {[%emt 00:00:15]} Nf6 {[%clk
00:02:42]} {[%emt 00:00:11]} 24. Nd6 {[%clk 00:03:37]} {[%emt 00:00:23]} Rd8
{[%clk 00:02:35]} {[%emt 00:00:10]} 25. Bb5 {[%clk 00:03:30]} {[%emt 00:00:10]}
Bxd6 {[%clk 00:02:31]} {[%emt 00:00:08]} 26. Bxa4 {[%clk 00:03:30]} {[%emt
00:00:02]} Bxg3 {[%clk 00:02:31]} {[%emt 00:00:01]} 27. hxg3 {[%clk 00:03:30]}
{[%emt 00:00:01]} Rdc8 {[%clk 00:02:24]} {[%emt 00:00:09]} 28. Bb5 {[%clk
00:03:30]} {[%emt 00:00:01]} a5 {[%clk 00:02:24]} {[%emt 00:00:02]} 29. Kf1
{[%clk 00:03:29]} {[%emt 00:00:04]} Kf8 {[%clk 00:02:23]} {[%emt 00:00:04]} 30.
Ke2 {[%clk 00:03:29]} Ke7 {[%clk 00:02:23]} 31. Bd3 {[%clk 00:03:25]} {[%emt
00:00:08]} h5 {[%clk 00:02:21]} {[%emt 00:00:05]} 32. Kd2 {[%clk 00:03:21]}
{[%emt 00:00:07]} h4 {[%clk 00:02:18]} {[%emt 00:00:05]} 33. gxh4 {[%clk
00:03:21]} {[%emt 00:00:02]} gxh4 {[%clk 00:02:18]} 34. Ke2 {[%clk 00:03:21]}
{[%emt 00:00:03]} Ng4 {[%clk 00:01:47]} {[%emt 00:00:35]} 35. Rh1 {[%clk
00:03:14]} {[%emt 00:00:10]} Rh8 {[%clk 00:01:41]} {[%emt 00:00:08]} 36. Rac1
{[%clk 00:03:06]} {[%emt 00:00:11]} Kd6 {[%clk 00:01:21]} {[%emt 00:00:23]} 37.
Bb5 {[%clk 00:02:53]} {[%emt 00:00:16]} Rac8 {[%clk 00:01:21]} 38. Rxc8 {[%clk
00:02:45]} {[%emt 00:00:11]} Rxc8 {[%clk 00:01:21]} 39. Bd3 {[%clk 00:02:45]}
Rh8 {[%clk 00:01:21]} {[%emt 00:00:02]} 40. f3 {[%clk 00:02:32]} {[%emt
00:00:16]} Nf6 {[%clk 00:01:21]} 41. g3 {[%clk 00:02:32]} Nh5 {[%clk 00:01:21]}
42. Kf2 {[%clk 00:02:27]} {[%emt 00:00:08]} Nxg3 {[%clk 00:01:21]} {[%emt
00:00:03]} 43. Rh2 {[%clk 00:02:27]} {[%emt 00:00:02]} f6 {[%clk 00:01:21]}
{[%emt 00:00:03]} 44. Kg2 {[%clk 00:02:25]} {[%emt 00:00:05]} e5 {[%clk
00:01:20]} {[%emt 00:00:04]} 45. dxe5+ {[%clk 00:02:25]} {[%emt 00:00:02]} fxe5
{[%clk 00:01:20]} 46. b4 {[%clk 00:02:18]} {[%emt 00:00:10]} e4 {[%clk
00:01:16]} {[%emt 00:00:07]} 47. fxe4 {[%clk 00:02:18]} {[%emt 00:00:02]} dxe4
{[%clk 00:01:16]} 48. Bb5 {[%clk 00:02:18]} {[%emt 00:00:01]} Nf5 {[%clk
00:01:16]} {[%emt 00:00:03]} 49. bxa5 {[%clk 00:02:13]} {[%emt 00:00:08]} bxa5
{[%emt 00:00:06]} 50. Kh3 {[%clk 00:02:11]} {[%emt 00:00:05]} Rg8 {[%clk
00:01:07]} {[%emt 00:00:09]} 51. Rf2 {[%clk 00:02:08]} {[%emt 00:00:06]} Ke5
{[%clk 00:01:06]} {[%emt 00:00:04]} 52. Bd7 {[%clk 00:02:03]} {[%emt 00:00:08]}
Rg3+ {[%clk 00:01:06]} {[%emt 00:00:03]} 53. Kh2 {[%clk 00:02:03]} {[%emt
00:00:01]} Nxe3 {[%clk 00:01:06]} {[%emt 00:00:02]} 54. a4 {[%clk 00:02:03]}
Ng4+ {[%clk 00:00:56]} {[%emt 00:00:12]} 55. Bxg4 {[%clk 00:02:03]} {[%emt
00:00:02]} Rxg4 {[%clk 00:00:56]} 56. Rb2 {[%clk 00:02:03]} {[%emt 00:00:01]}
e3 {[%clk 00:00:54]} {[%emt 00:00:05]} 57. Kh3 {[%clk 00:01:55]} {[%emt
00:00:10]} Re4 {[%clk 00:00:54]} {[%emt 00:00:02]} 58. Re2 {[%clk 00:01:55]}
{[%emt 00:00:02]} Kd4 {[%clk 00:00:54]} {[%emt 00:00:01]} 59. Kg2 {[%clk
00:01:53]} {[%emt 00:00:05]} Kd3 {[%clk 00:00:54]} {[%emt 00:00:01]} 60. Re1
{[%clk 00:01:53]} e2 {[%clk 00:00:54]} {[%emt 00:00:02]} 0-1

[Event "13 Open de Quenza"]
[Site "Quenza, France"]
[Date "2024.07.07"]
[Round "7.4"]
[White "Ciobanu, Camelia-Adriana"]
[Black "Relange, Eloi"]
[Result "0-1"]
[TimeControl "5min+3s/move"]
[WhiteElo "2093"]
[BlackElo "2440"]

1. Nf3 {[%clk 00:05:03]} {[%emt 00:11:00]} d6 {[%clk 00:05:02]} {[%emt
00:00:39]} 2. g3 {[%clk 00:04:59]} {[%emt 00:00:07]} e5 {[%clk 00:05:02]}
{[%emt 00:00:01]} 3. d3 {[%clk 00:04:59]} {[%emt 00:00:02]} f5 {[%clk
00:05:00]} {[%emt 00:00:05]} 4. Bg2 {[%clk 00:04:59]} {[%emt 00:00:02]} Nf6
{[%clk 00:05:00]} {[%emt 00:00:01]} 5. O-O {[%clk 00:04:59]} {[%emt 00:00:02]}
Nc6 {[%clk 00:04:59]} {[%emt 00:00:05]} 6. c4 {[%clk 00:04:58]} {[%emt
00:00:04]} g6 {[%clk 00:04:50]} {[%emt 00:00:12]} 7. Nc3 {[%clk 00:04:58]}
{[%emt 00:00:02]} Bg7 {[%clk 00:04:50]} 8. Rb1 {[%clk 00:04:54]} {[%emt
00:00:07]} a5 {[%clk 00:04:50]} 9. a3 {[%emt 00:00:06]} O-O {[%clk 00:04:50]}
{[%emt 00:00:02]} 10. b4 {[%clk 00:04:49]} {[%emt 00:00:05]} axb4 {[%clk
00:04:50]} {[%emt 00:00:02]} 11. axb4 {[%clk 00:04:49]} Qe8 {[%clk 00:04:32]}
{[%emt 00:00:20]} 12. b5 {[%clk 00:04:36]} {[%emt 00:00:16]} Nd8 {[%clk
00:04:32]} 13. b6 {[%clk 00:04:36]} {[%emt 00:00:03]} c6 {[%clk 00:04:29]}
{[%emt 00:00:06]} 14. Bb2 {[%clk 00:04:25]} {[%emt 00:00:14]} Nd7 {[%clk
00:04:16]} {[%emt 00:00:16]} 15. Na4 {[%clk 00:04:09]} {[%emt 00:00:20]} Ne6
{[%clk 00:04:15]} {[%emt 00:00:04]} 16. Ba3 {[%clk 00:04:03]} {[%emt 00:00:10]}
Ndc5 {[%clk 00:03:53]} {[%emt 00:00:24]} 17. Bxc5 {[%clk 00:03:54]} {[%emt
00:00:12]} dxc5 {[%clk 00:03:52]} {[%emt 00:00:04]} 18. Nd2 {[%clk 00:03:44]}
{[%emt 00:00:13]} Qe7 {[%clk 00:03:51]} {[%emt 00:00:04]} 19. Nb2 {[%clk
00:03:01]} {[%emt 00:00:46]} Qd8 {[%clk 00:03:18]} {[%emt 00:00:36]} 20. Na4
{[%clk 00:02:54]} {[%emt 00:00:10]} Qe7 {[%clk 00:03:07]} {[%emt 00:00:14]} 21.
Nb2 {[%clk 00:02:51]} {[%emt 00:00:07]} h5 {[%clk 00:03:07]} {[%emt 00:00:02]}
22. e3 {[%clk 00:02:51]} {[%emt 00:00:01]} h4 {[%clk 00:02:57]} {[%emt
00:00:13]} 23. f4 {[%clk 00:02:49]} {[%emt 00:00:04]} Rd8 {[%clk 00:02:36]}
{[%emt 00:00:24]} 24. Qb3 {[%clk 00:02:17]} {[%emt 00:00:35]} g5 {[%clk
00:01:47]} {[%emt 00:00:51]} 25. fxe5 {[%clk 00:01:50]} {[%emt 00:00:30]} Bxe5
{[%clk 00:01:47]} {[%emt 00:00:01]} 26. Rxf5 {[%clk 00:01:30]} {[%emt
00:00:23]} Nd4 {[%clk 00:01:47]} {[%emt 00:00:01]} 27. exd4 {[%clk 00:00:59]}
{[%emt 00:00:34]} Bxd4+ {[%clk 00:01:47]} {[%emt 00:00:03]} 28. Rf2 {[%clk
00:00:59]} {[%emt 00:00:01]} Qe2 {[%clk 00:01:08]} {[%emt 00:00:43]} 29. Ne4
{[%clk 00:00:53]} {[%emt 00:00:10]} Rf8 {[%clk 00:01:08]} {[%emt 00:00:01]} 30.
Nd1 {[%clk 00:00:26]} {[%emt 00:00:30]} Bg4 {[%clk 00:00:34]} {[%emt 00:00:36]}
31. Kh1 {[%clk 00:00:10]} {[%emt 00:00:19]} Qe1+ {[%emt 00:00:15]} 32. Bf1 Bf3+
{[%clk 00:00:19]} {[%emt 00:00:06]} 33. Rxf3 {[%clk 00:00:10]} {[%emt
00:00:03]} Rxf3 {[%clk 00:00:19]} {[%emt 00:00:03]} 34. Ndf2 {[%clk 00:00:10]}
{[%emt 00:00:02]} Qe3 {[%clk 00:00:16]} {[%emt 00:00:05]} 35. Qc2 {[%clk
00:00:09]} {[%emt 00:00:04]} Raf8 {[%clk 00:00:16]} {[%emt 00:00:03]} 36. Bg2
{[%clk 00:00:09]} {[%emt 00:00:03]} Rxf2 {[%clk 00:00:12]} {[%emt 00:00:07]} 37.
Nxf2 {[%clk 00:00:09]} Rxf2 {[%clk 00:00:12]} {[%emt 00:00:01]} 38. Qd1 {[%clk
00:00:09]} hxg3 {[%clk 00:00:10]} {[%emt 00:00:05]} 39. h3 {[%clk 00:00:09]}
Re2 {[%clk 00:00:10]} {[%emt 00:00:02]} 40. Qf1 {[%clk 00:00:09]} Rf2 {[%clk
00:00:10]} {[%emt 00:00:02]} 41. Qg1 {[%clk 00:00:09]} Qd2 {[%clk 00:00:07]}
{[%emt 00:00:06]} 42. Re1 {[%clk 00:00:09]} {[%emt 00:00:01]} Rxg2 {[%clk
00:00:07]} {[%emt 00:00:02]} 43. Re8+ {[%clk 00:00:09]} Kf7 {[%clk 00:00:07]}
44. Qxg2 {[%clk 00:00:07]} {[%emt 00:00:06]} Qd1+ {[%clk 00:00:05]} {[%emt
00:00:04]} 0-1

[Event "13 Open de Quenza"]
[Site "Quenza, France"]
[Date "2024.07.07"]
[Round "7.5"]
[White "Fedorchuk, Sergey A."]
[Black "Sabiani, Chjara"]
[Result "1-0"]
[TimeControl "5min+3s/move"]
[WhiteElo "2554"]
[BlackElo "1841"]

1. e4 {[%clk 00:05:03]} {[%emt 00:00:01]} c5 {[%clk 00:05:03]} {[%emt
00:00:02]} 2. Nf3 {[%clk 00:05:03]} {[%emt 00:00:02]} Nc6 {[%clk 00:05:03]}
{[%emt 00:00:01]} 3. Bb5 {[%clk 00:05:03]} {[%emt 00:00:02]} Qc7 {[%clk
00:04:46]} {[%emt 00:00:20]} 4. O-O {[%clk 00:04:50]} {[%emt 00:00:17]} g6
{[%clk 00:04:45]} {[%emt 00:00:04]} 5. c3 {[%clk 00:04:38]} {[%emt 00:00:15]}
Bg7 {[%emt 00:00:06]} 6. d4 {[%clk 00:04:35]} {[%emt 00:00:03]} cxd4 {[%clk
00:04:41]} {[%emt 00:00:07]} 7. cxd4 {[%clk 00:04:35]} a6 {[%clk 00:04:39]}
{[%emt 00:00:06]} 8. Ba4 {[%clk 00:04:25]} {[%emt 00:00:13]} b5 {[%clk
00:04:33]} {[%emt 00:00:09]} 9. Bb3 {[%clk 00:04:25]} {[%emt 00:00:01]} Nf6
{[%clk 00:04:03]} {[%emt 00:00:33]} 10. e5 {[%clk 00:04:14]} {[%emt 00:00:14]}
Ng8 {[%clk 00:03:31]} {[%emt 00:00:35]} 11. Nc3 {[%clk 00:04:10]} {[%emt
00:00:06]} e6 {[%clk 00:03:31]} {[%emt 00:00:02]} 12. Ne4 {[%clk 00:04:09]}
{[%emt 00:00:04]} Nge7 {[%clk 00:03:22]} {[%emt 00:00:12]} 13. Nd6+ {[%clk
00:03:55]} {[%emt 00:00:17]} Kf8 {[%clk 00:03:22]} {[%emt 00:00:01]} 14. Bf4
{[%clk 00:03:54]} {[%emt 00:00:04]} h6 {[%clk 00:03:17]} {[%emt 00:00:08]} 15.
Rc1 {[%clk 00:03:42]} {[%emt 00:00:15]} Qa7 {[%clk 00:03:08]} {[%emt 00:00:12]}
16. Be3 {[%clk 00:03:35]} {[%emt 00:00:10]} Nd5 {[%clk 00:02:48]} {[%emt
00:00:23]} 17. Bxd5 {[%clk 00:02:45]} {[%emt 00:00:52]} exd5 {[%clk 00:02:48]}
{[%emt 00:00:01]} 18. Qb3 {[%clk 00:02:45]} {[%emt 00:00:01]} Ne7 {[%clk
00:02:31]} {[%emt 00:00:19]} 19. Rc5 {[%clk 00:02:42]} {[%emt 00:00:06]} Nf5
{[%clk 00:02:04]} {[%emt 00:00:30]} 20. Nxc8 {[%clk 00:02:32]} {[%emt
00:00:14]} Qb7 {[%clk 00:01:51]} {[%emt 00:00:16]} 21. Rfc1 {[%clk 00:02:32]}
{[%emt 00:00:02]} Nxe3 {[%clk 00:01:49]} {[%emt 00:00:05]} 22. fxe3 {[%clk
00:02:32]} {[%emt 00:00:01]} 1-0

[Event "13 Open de Quenza"]
[Site "Quenza, France"]
[Date "2024.07.07"]
[Round "7.6"]
[White "Maze, Sebastien"]
[Black "Roubert, Emile"]
[Result "1-0"]
[TimeControl "5min+3s/move"]
[WhiteElo "2553"]
[BlackElo "1985"]

1. d4 {[%clk 00:05:03]} {[%emt 00:00:02]} d5 {[%clk 00:05:03]} {[%emt
00:00:01]} 2. Nf3 {[%clk 00:05:03]} e6 {[%clk 00:05:03]} {[%emt 00:00:01]} 3.
Bg5 {[%clk 00:05:03]} {[%emt 00:00:01]} Be7 {[%clk 00:05:01]} {[%emt 00:00:05]}
4. Bxe7 {[%clk 00:05:03]} {[%emt 00:00:02]} Qxe7 {[%clk 00:05:01]} {[%emt
00:00:01]} 5. Nbd2 {[%clk 00:04:59]} {[%emt 00:00:08]} Nf6 {[%clk 00:04:44]}
{[%emt 00:00:20]} 6. e3 {[%clk 00:04:59]} {[%emt 00:00:01]} c5 {[%clk
00:04:38]} {[%emt 00:00:08]} 7. c3 {[%clk 00:04:59]} {[%emt 00:00:02]} O-O
{[%clk 00:04:31]} {[%emt 00:00:10]} 8. Bd3 {[%clk 00:04:58]} {[%emt 00:00:03]}
b6 {[%clk 00:03:47]} {[%emt 00:00:47]} 9. Ne5 {[%clk 00:04:47]} {[%emt
00:00:14]} Ba6 {[%clk 00:03:25]} {[%emt 00:00:26]} 10. Bc2 {[%clk 00:04:45]}
{[%emt 00:00:04]} Nbd7 {[%clk 00:03:15]} {[%emt 00:00:12]} 11. f4 {[%clk
00:04:45]} {[%emt 00:00:02]} Rac8 {[%clk 00:03:00]} {[%emt 00:00:18]} 12. Qf3
{[%clk 00:04:33]} {[%emt 00:00:15]} Ne8 {[%clk 00:02:17]} {[%emt 00:00:47]} 13.
Qh3 {[%clk 00:04:21]} {[%emt 00:00:15]} f5 {[%clk 00:02:16]} {[%emt 00:00:04]}
14. Ndf3 {[%clk 00:04:06]} {[%emt 00:00:18]} Nd6 {[%clk 00:02:11]} {[%emt
00:00:08]} 15. g4 {[%clk 00:03:03]} {[%emt 00:01:05]} Ne4 {[%clk 00:01:40]}
{[%emt 00:00:34]} 16. gxf5 {[%clk 00:02:26]} {[%emt 00:00:41]} exf5 {[%clk
00:01:35]} {[%emt 00:00:08]} 17. Rg1 {[%clk 00:02:21]} {[%emt 00:00:08]} cxd4
{[%clk 00:01:10]} {[%emt 00:00:29]} 18. exd4 {[%clk 00:02:09]} {[%emt
00:00:15]} Rc7 {[%clk 00:00:45]} {[%emt 00:00:27]} 19. Bxe4 {[%clk 00:01:54]}
{[%emt 00:00:17]} fxe4 {[%clk 00:00:24]} {[%emt 00:00:24]} 20. Ng5 {[%clk
00:01:51]} {[%emt 00:00:07]} Nf6 {[%clk 00:00:24]} {[%emt 00:00:02]} 21. Qe6+
{[%clk 00:01:30]} {[%emt 00:00:24]} Kh8 {[%clk 00:00:24]} {[%emt 00:00:03]} 22.
Kd2 {[%clk 00:00:55]} {[%emt 00:00:38]} Bc8 {[%clk 00:00:24]} {[%emt 00:00:01]}
23. Qxe7 {[%clk 00:00:52]} {[%emt 00:00:06]} Rxe7 {[%clk 00:00:24]} 24. Ke3
{[%clk 00:00:51]} {[%emt 00:00:04]} Nh5 {[%clk 00:00:24]} {[%emt 00:00:02]} 25.
Raf1 {[%clk 00:00:48]} {[%emt 00:00:06]} h6 {[%clk 00:00:24]} 26. Ng6+ {[%clk
00:00:48]} {[%emt 00:00:02]} Kh7 {[%clk 00:00:24]} {[%emt 00:00:03]} 27. Nxf8+
{[%clk 00:00:48]} {[%emt 00:00:02]} 1-0

[Event "13 Open de Quenza"]
[Site "Quenza, France"]
[Date "2024.07.07"]
[Round "7.7"]
[White "Podvin, Antoine"]
[Black "Glek, Igor"]
[Result "1-0"]
[TimeControl "5min+3s/move"]
[WhiteElo "2056"]
[BlackElo "2396"]

1. d4 {[%clk 00:05:03]} {[%emt 00:00:02]} e6 {[%clk 00:05:03]} 2. Nc3 {[%clk
00:05:03]} {[%emt 00:00:03]} d5 {[%clk 00:04:51]} {[%emt 00:00:15]} 3. e4
{[%clk 00:05:03]} {[%emt 00:00:01]} Nf6 {[%clk 00:04:51]} 4. e5 {[%clk
00:05:03]} {[%emt 00:00:02]} Nfd7 {[%clk 00:04:51]} 5. f4 {[%clk 00:05:03]} c5
{[%clk 00:04:51]} 6. Nf3 {[%clk 00:05:03]} {[%emt 00:00:02]} Nc6 {[%clk
00:04:51]} 7. Ne2 {[%clk 00:05:03]} {[%emt 00:00:02]} b5 {[%clk 00:04:51]}
{[%emt 00:00:02]} 8. c3 {[%clk 00:05:03]} {[%emt 00:00:03]} a5 {[%clk
00:04:49]} {[%emt 00:00:06]} 9. g3 {[%clk 00:05:03]} {[%emt 00:00:02]} b4
{[%clk 00:04:49]} 10. Bh3 {[%clk 00:05:03]} {[%emt 00:00:01]} Be7 {[%clk
00:04:30]} {[%emt 00:00:22]} 11. O-O {[%clk 00:05:03]} {[%emt 00:00:02]} O-O
{[%clk 00:04:30]} {[%emt 00:00:02]} 12. f5 {[%clk 00:05:03]} {[%emt 00:00:02]}
exf5 {[%clk 00:04:29]} {[%emt 00:00:04]} 13. Bxf5 {[%clk 00:05:03]} {[%emt
00:00:02]} Nb6 {[%clk 00:04:13]} {[%emt 00:00:20]} 14. Bc2 {[%clk 00:04:47]}
{[%emt 00:00:20]} Ba6 {[%clk 00:03:56]} {[%emt 00:00:20]} 15. Rf2 {[%clk
00:04:39]} {[%emt 00:00:10]} bxc3 {[%clk 00:03:49]} {[%emt 00:00:10]} 16. bxc3
{[%clk 00:04:39]} {[%emt 00:00:02]} Qd7 {[%clk 00:03:19]} {[%emt 00:00:33]} 17.
Nf4 {[%clk 00:04:39]} {[%emt 00:00:02]} cxd4 {[%clk 00:03:15]} {[%emt
00:00:07]} 18. cxd4 {[%clk 00:04:37]} {[%emt 00:00:05]} Rac8 {[%clk 00:03:11]}
{[%emt 00:00:07]} 19. Rb1 {[%clk 00:04:37]} {[%emt 00:00:02]} Nb4 {[%clk
00:03:04]} {[%emt 00:00:11]} 20. a3 {[%clk 00:03:30]} {[%emt 00:01:10]} Rxc2
{[%clk 00:01:38]} {[%emt 00:01:29]} 21. Rxc2 {[%clk 00:03:24]} {[%emt
00:00:09]} Nxc2 {[%clk 00:01:31]} {[%emt 00:00:09]} 22. Rxb6 {[%clk 00:03:17]}
{[%emt 00:00:10]} Qc8 {[%clk 00:01:13]} {[%emt 00:00:21]} 23. Nxd5 {[%clk
00:02:39]} {[%emt 00:00:42]} Bd8 {[%clk 00:01:12]} {[%emt 00:00:04]} 24. Rxa6
{[%clk 00:02:18]} {[%emt 00:00:24]} Qxa6 {[%clk 00:01:12]} {[%emt 00:00:03]} 25.
Qxc2 {[%clk 00:02:18]} {[%emt 00:00:01]} Qb7 {[%clk 00:00:59]} {[%emt
00:00:14]} 26. Qe4 {[%clk 00:02:00]} {[%emt 00:00:23]} Qc8 {[%clk 00:00:59]}
{[%emt 00:00:02]} 27. Be3 {[%clk 00:01:38]} {[%emt 00:00:25]} h6 {[%clk
00:00:59]} {[%emt 00:00:03]} 28. Kg2 {[%clk 00:01:21]} {[%emt 00:00:19]} Re8
{[%clk 00:00:52]} {[%emt 00:00:10]} 29. Nd2 {[%clk 00:01:14]} {[%emt 00:00:10]}
Re6 {[%clk 00:00:32]} {[%emt 00:00:24]} 30. Nf4 {[%clk 00:01:14]} {[%emt
00:00:03]} Rb6 {[%clk 00:00:26]} {[%emt 00:00:07]} 31. d5 {[%clk 00:01:14]}
{[%emt 00:00:04]} Rb2 {[%clk 00:00:26]} {[%emt 00:00:02]} 32. e6 {[%clk
00:01:12]} {[%emt 00:00:05]} Bb6 {[%clk 00:00:13]} {[%emt 00:00:17]} 33. exf7+
{[%clk 00:01:09]} {[%emt 00:00:06]} Kxf7 {[%clk 00:00:13]} {[%emt 00:00:02]} 34.
Qe6+ {[%clk 00:00:57]} {[%emt 00:00:15]} Qxe6 {[%clk 00:00:13]} {[%emt
00:00:02]} 35. dxe6+ {[%clk 00:00:57]} Ke8 {[%clk 00:00:13]} {[%emt 00:00:02]}
36. Bxb6 {[%clk 00:00:47]} {[%emt 00:00:14]} Rxb6 {[%clk 00:00:13]} {[%emt
00:00:02]} 37. Kf3 {[%clk 00:00:41]} {[%emt 00:00:09]} Rb2 {[%clk 00:00:10]}
{[%emt 00:00:06]} 38. Nc4 {[%clk 00:00:41]} {[%emt 00:00:02]} Rb3+ {[%clk
00:00:09]} {[%emt 00:00:03]} 39. Ke4 {[%clk 00:00:41]} {[%emt 00:00:02]} a4
{[%clk 00:00:09]} {[%emt 00:00:01]} 40. Nd5 {[%clk 00:00:40]} {[%emt 00:00:03]}
Rb1 {[%clk 00:00:05]} {[%emt 00:00:08]} 41. Nd6+ {[%clk 00:00:40]} 1-0

[Event "13 Open de Quenza"]
[Site "Quenza, France"]
[Date "2024.07.07"]
[Round "7.8"]
[White "Ratier-Fontana, Matteo"]
[Black "Yankelevich, Lev"]
[Result "0-1"]
[TimeControl "5min+3s/move"]
[WhiteElo "2153"]
[BlackElo "2416"]

1. d4 {[%clk 00:05:03]} {[%emt 00:00:01]} Nf6 {[%clk 00:05:03]} {[%emt
00:00:01]} 2. Bf4 {[%clk 00:05:03]} c5 {[%clk 00:05:00]} {[%emt 00:00:07]} 3.
e3 {[%clk 00:05:03]} Nd5 {[%clk 00:05:00]} {[%emt 00:00:01]} 4. Bg3 {[%clk
00:04:59]} {[%emt 00:00:08]} Qb6 {[%clk 00:05:00]} {[%emt 00:00:03]} 5. Nc3
{[%clk 00:04:49]} {[%emt 00:00:13]} Nxc3 {[%clk 00:04:52]} {[%emt 00:00:11]} 6.
bxc3 {[%clk 00:04:49]} {[%emt 00:00:01]} d6 {[%clk 00:04:42]} {[%emt 00:00:13]}
7. Bd3 {[%clk 00:04:28]} {[%emt 00:00:24]} g6 {[%clk 00:04:41]} {[%emt
00:00:04]} 8. Ne2 {[%clk 00:04:28]} {[%emt 00:00:01]} Bg7 {[%clk 00:04:41]}
{[%emt 00:00:03]} 9. O-O {[%clk 00:04:22]} {[%emt 00:00:08]} O-O {[%clk
00:04:19]} {[%emt 00:00:24]} 10. Rb1 {[%clk 00:04:22]} {[%emt 00:00:03]} Qc7
{[%clk 00:04:19]} {[%emt 00:00:02]} 11. Nf4 {[%clk 00:04:05]} {[%emt 00:00:20]}
e6 {[%clk 00:03:56]} {[%emt 00:00:27]} 12. h4 {[%clk 00:04:02]} {[%emt
00:00:06]} Nd7 {[%clk 00:03:34]} {[%emt 00:00:24]} 13. h5 {[%clk 00:03:54]}
{[%emt 00:00:10]} Nf6 {[%clk 00:03:33]} {[%emt 00:00:05]} 14. hxg6 {[%clk
00:03:44]} {[%emt 00:00:14]} hxg6 {[%clk 00:03:33]} {[%emt 00:00:01]} 15. Re1
{[%clk 00:03:12]} {[%emt 00:00:35]} e5 {[%clk 00:03:25]} {[%emt 00:00:11]} 16.
Nh3 {[%clk 00:02:18]} {[%emt 00:00:56]} c4 {[%clk 00:03:25]} {[%emt 00:00:03]}
17. Bf1 {[%clk 00:02:18]} {[%emt 00:00:02]} Ne4 {[%clk 00:03:25]} {[%emt
00:00:03]} 18. Rb4 {[%clk 00:01:56]} {[%emt 00:00:25]} Nxg3 {[%clk 00:03:21]}
{[%emt 00:00:07]} 19. fxg3 {[%clk 00:01:56]} {[%emt 00:00:01]} d5 {[%clk
00:03:21]} {[%emt 00:00:02]} 20. Kh2 {[%clk 00:01:33]} {[%emt 00:00:26]} Re8
{[%clk 00:03:11]} {[%emt 00:00:13]} 21. e4 {[%clk 00:01:26]} {[%emt 00:00:10]}
exd4 {[%clk 00:02:59]} {[%emt 00:00:15]} 22. exd5 {[%clk 00:01:18]} {[%emt
00:00:12]} Bxh3 {[%clk 00:02:31]} {[%emt 00:00:31]} 23. gxh3 {[%clk 00:01:12]}
{[%emt 00:00:08]} Be5 {[%clk 00:02:11]} {[%emt 00:00:23]} 24. Rxc4 {[%clk
00:01:10]} {[%emt 00:00:05]} Bxg3+ {[%clk 00:01:55]} {[%emt 00:00:19]} 25. Kg2
{[%clk 00:01:10]} Qf4 {[%clk 00:01:55]} {[%emt 00:00:02]} 26. Rxe8+ {[%clk
00:01:09]} {[%emt 00:00:04]} Rxe8 {[%clk 00:01:55]} {[%emt 00:00:01]} 27. Qf3
{[%clk 00:01:09]} Qd2+ {[%clk 00:01:55]} {[%emt 00:00:03]} 28. Kxg3 {[%clk
00:01:05]} {[%emt 00:00:08]} Re3 {[%clk 00:01:55]} 29. Rxd4 {[%clk 00:00:59]}
{[%emt 00:00:09]} Qe1+ {[%clk 00:01:52]} {[%emt 00:00:06]} 30. Kf4 {[%clk
00:00:37]} {[%emt 00:00:25]} Rxf3+ {[%clk 00:01:52]} {[%emt 00:00:02]} 31. Kxf3
{[%clk 00:00:37]} Qxf1+ {[%clk 00:01:52]} {[%emt 00:00:02]} 32. Kg3 {[%clk
00:00:26]} {[%emt 00:00:14]} Kf8 {[%clk 00:01:47]} {[%emt 00:00:09]} 33. d6
{[%clk 00:00:24]} {[%emt 00:00:05]} Ke8 {[%clk 00:01:47]} 34. Rd3 {[%clk
00:00:20]} {[%emt 00:00:08]} Kd7 {[%clk 00:01:38]} {[%emt 00:00:11]} 35. c4
{[%clk 00:00:20]} {[%emt 00:00:01]} g5 {[%clk 00:01:33]} {[%emt 00:00:08]} 36.
c5 {[%clk 00:00:10]} {[%emt 00:00:13]} Qf4+ {[%clk 00:01:23]} {[%emt 00:00:13]}
37. Kg2 {[%clk 00:00:10]} {[%emt 00:00:01]} Qe4+ {[%clk 00:01:23]} {[%emt
00:00:01]} 38. Rf3 {[%clk 00:00:05]} {[%emt 00:00:08]} f5 {[%clk 00:01:23]}
{[%emt 00:00:02]} 39. Kf2 {[%clk 00:00:05]} {[%emt 00:00:02]} Qd4+ {[%clk
00:01:23]} {[%emt 00:00:02]} 40. Ke1 {[%emt 00:00:08]} 0-1